fUST/lending_fUST_20250429
["ID","MTS","AMOUNT","RATE_DAILY","PERIOD"]
[359255762,1745871377782,-400.0,0.00022465,2]
[359255763,1745871377809,-400.0,0.00022465,2]
[359255764,1745871377835,-400.0,0.00022465,2]
[359255765,1745871377862,-400.0,0.00022465,2]
[359255766,1745871377888,-1547.12,0.00022465,2]
[359255767,1745871377916,-400.0,0.00022465,2]
[359255768,1745871377943,-507.55,0.00022465,2]
[359255769,1745871377969,-400.0,0.00022465,2]
[359255770,1745871377997,-400.0,0.00022465,2]
[359255771,1745871378023,-400.0,0.00022465,2]
[359255772,1745871378049,-400.0,0.00022465,2]
[359255773,1745871378075,-400.0,0.00022465,2]
[359255774,1745871378104,-417.34720496,0.00022465,2]
[359255775,1745871378131,-400.0,0.00022465,2]
[359255776,1745871378159,-500.0,0.00022465,2]
[359255777,1745871378186,-400.0,0.00022465,2]
[359255778,1745871378213,-400.0,0.00022465,2]
[359255779,1745871378242,-400.0,0.00022465,2]
[359255780,1745871378269,-484.04,0.00022465,2]
[359255781,1745871378296,-400.0,0.00022465,2]
[359255782,1745871378323,-400.0,0.00022465,2]
[359255783,1745871378351,-2357.16,0.00022465,2]
[359255784,1745871378381,-400.0,0.00022465,2]
[359255785,1745871378411,-400.0,0.00022465,2]
[359255786,1745871378438,-400.0,0.00022465,2]
[359255787,1745871378466,-400.0,0.00022465,2]
[359255788,1745871378493,-308.59906571,0.00022465,2]
[359255789,1745871378522,-1125.39,0.00022465,2]
[359255790,1745871378548,-400.0,0.00022465,2]
[359255791,1745871378575,-400.0,0.00022465,2]
[359255792,1745871378603,-444.17,0.00022465,2]
[359255793,1745871378629,-400.0,0.00022465,2]
[359255794,1745871378656,-400.0,0.00022465,2]
[359255795,1745871378684,-588.3,0.00022465,2]
[359255796,1745871378714,-400.0,0.00022465,2]
[359255797,1745871378738,-400.0,0.00022465,2]
[359255798,1745871378766,-400.0,0.00022465,2]
[359255799,1745871378793,-400.0,0.00022465,2]
[359255800,1745871378825,-400.0,0.00022465,2]
[359255801,1745871378852,-400.0,0.00022465,2]
[359255802,1745871378883,-410.46904794,0.00022465,2]
[359255803,1745871378910,-202.62459525,0.00022465,2]
[359255804,1745871378937,-400.0,0.00022465,2]
[359255805,1745871378964,-588.2,0.00022465,2]
[359255806,1745871378992,-400.0,0.00022465,2]
[359255807,1745871379019,-400.0,0.00022465,2]
[359255808,1745871379046,-400.0,0.00022465,2]
[359255809,1745871379073,-337.07094502,0.00022465,2]
[359255810,1745871379099,-400.0,0.00022465,2]
[359255811,1745871379126,-400.0,0.00022465,2]
[359255812,1745871379155,-825.34,0.00022465,2]
[359255813,1745871379184,-400.0,0.00022465,2]
[359255814,1745871379213,-400.0,0.00022465,2]
[359255815,1745871379246,-307.14702956,0.00022465,2]
[359255816,1745871379275,-313.06555353,0.00022465,2]
[359255817,1745871379303,-400.0,0.00022465,2]
[359255818,1745871379331,-402.61,0.00022465,2]
[359255819,1745871379359,-400.0,0.00022465,2]
[359255820,1745871379388,-400.0,0.00022465,2]
[359255821,1745871379417,-813.55,0.00022465,2]
[359255822,1745871379446,-928.46,0.00022465,2]
[359255823,1745871379475,-400.0,0.00022465,2]
[359255824,1745871379504,-1204.53,0.00022465,2]
[359255825,1745871379533,-400.0,0.00022465,2]
[359255826,1745871379562,-400.0,0.00022465,2]
[359255827,1745871379590,-400.0,0.00022465,2]
[359255828,1745871379618,-419.98,0.00022465,2]
[359255829,1745871379647,-400.0,0.00022465,2]
[359255830,1745871379798,-400.0,0.00022465,2]
[359255831,1745871379828,-400.0,0.00022465,2]
[359255832,1745871379859,-400.0,0.00022465,2]
[359255833,1745871379886,-400.0,0.00022465,2]
[359255834,1745871379913,-821.95,0.00022465,2]
[359255835,1745871379940,-498.63975099,0.00022465,2]
[359255836,1745871379967,-417.00640539,0.00022465,2]
[359255837,1745871379996,-167.40754338,0.00022465,2]
[359255838,1745871380026,-400.0,0.00022465,2]
[359255839,1745871380054,-200.0,0.00022465,2]
[359255840,1745871380081,-833.19,0.00022465,2]
[359255841,1745871380108,-400.0,0.00022465,2]
[359255842,1745871380136,-703.09,0.00022465,2]
[359255843,1745871380163,-400.0,0.00022465,2]
[359255844,1745871380191,-400.0,0.00022465,2]
[359255845,1745871380218,-400.0,0.00022465,2]
[359255846,1745871380249,-400.0,0.00022465,2]
[359255847,1745871380277,-478.26262018,0.00022465,2]
[359255848,1745871380307,-400.0,0.00022465,2]
[359255849,1745871380335,-400.0,0.00022465,2]
[359255850,1745871380361,-400.0,0.00022465,2]
[359255851,1745871380389,-400.0,0.00022465,2]
[359255852,1745871380417,-400.0,0.00022465,2]
[359255853,1745871380445,-300.0,0.00022465,2]
[359255854,1745871380473,-400.0,0.00022465,2]
[359255855,1745871380501,-400.0,0.00022465,2]
[359255856,1745871380528,-400.0,0.00022465,2]
[359255857,1745871380556,-400.0,0.00022465,2]
[359255858,1745871380585,-400.0,0.00022465,2]
[359255859,1745871380613,-400.0,0.00022465,2]
[359255860,1745871380641,-400.0,0.00022465,2]
[359255861,1745871380668,-400.0,0.00022465,2]
[359255862,1745871380696,-400.0,0.00022465,2]
[359255863,1745871380722,-400.0,0.00022465,2]
[359255864,1745871380752,-2369.16,0.00022465,2]
[359255865,1745871380782,-400.0,0.00022465,2]
[359255866,1745871380810,-400.0,0.00022465,2]
[359255867,1745871380838,-400.0,0.00022465,2]
[359255868,1745871380868,-400.0,0.00022465,2]
[359255869,1745871380895,-400.0,0.00022465,2]
[359255870,1745871380922,-776.44,0.00022465,2]
[359255871,1745871380948,-400.0,0.00022465,2]
[359255872,1745871380974,-400.0,0.00022465,2]
[359255873,1745871381001,-400.0,0.00022465,2]
[359255874,1745871381028,-400.0,0.00022465,2]
[359255875,1745871381054,-400.0,0.00022465,2]
[359255876,1745871381081,-400.0,0.00022465,2]
[359255877,1745871381110,-400.0,0.00022465,2]
[359255878,1745871381137,-304.27459353,0.00022465,2]
[359255879,1745871381163,-400.0,0.00022465,2]
[359255880,1745871381192,-508.46,0.00022465,2]
[359255881,1745871381219,-400.0,0.00022465,2]
[359255882,1745871381249,-400.0,0.00022465,2]
[359255883,1745871381277,-400.0,0.00022465,2]
[359255884,1745871381305,-400.0,0.00022465,2]
[359255885,1745871381334,-400.0,0.00022465,2]
[359255886,1745871381361,-400.0,0.00022465,2]
[359255887,1745871381388,-400.0,0.00022465,2]
[359255888,1745871381417,-400.0,0.00022465,2]
[359255889,1745871381444,-400.0,0.00022465,2]
[359255890,1745871381474,-400.0,0.00022465,2]
[359255891,1745871381504,-700.11,0.00022465,2]
[359255892,1745871381533,-400.0,0.00022465,2]
[359255893,1745871381562,-400.0,0.00022465,2]
[359255894,1745871381589,-400.0,0.00022465,2]
[359255895,1745871381617,-400.0,0.00022465,2]
[359255896,1745871381644,-400.0,0.00022465,2]
[359255897,1745871381672,-396.17391046,0.00022465,2]
[359255898,1745871381700,-400.0,0.00022465,2]
[359255899,1745871381727,-200.0,0.00022465,2]
[359255900,1745871381761,-400.0,0.00022465,2]
[359255901,1745871381788,-400.0,0.00022465,2]
[359255902,1745871381816,-420.83,0.00022465,2]
[359255903,1745871381843,-400.0,0.00022465,2]
[359255904,1745871381871,-400.0,0.00022465,2]
[359255905,1745871381899,-400.0,0.00022465,2]
[359255906,1745871381925,-400.0,0.00022465,2]
[359255907,1745871381951,-156.94664998,0.00022465,2]
[359255908,1745871381979,-410.67,0.00022465,2]
[359255909,1745871382009,-400.0,0.00022465,2]
[359255910,1745871382036,-400.0,0.00022465,2]
[359255911,1745871382063,-400.0,0.00022465,2]
[359255912,1745871382090,-309.15456397,0.00022465,2]
[359255913,1745871382116,-400.0,0.00022465,2]
[359255914,1745871382143,-400.0,0.00022465,2]
[359255915,1745871382170,-400.0,0.00022465,2]
[359255916,1745871382314,-581.3,0.00022465,2]
[359255917,1745871382345,-427.37,0.00022465,2]
[359255918,1745871382376,-400.0,0.00022465,2]
[359255919,1745871382405,-201.04105917,0.00022465,2]
[359255920,1745871382434,-307.37604626,0.00022465,2]
[359255921,1745871382465,-400.0,0.00022465,2]
[359255922,1745871382497,-400.0,0.00022465,2]
[359255923,1745871382528,-400.0,0.00022465,2]
[359255924,1745871382558,-1154.52,0.00022465,2]
[359255925,1745871382587,-400.0,0.00022465,2]
[359255926,1745871382613,-400.0,0.00022465,2]
[359255927,1745871382640,-309.13865119,0.00022465,2]
[359255928,1745871382668,-500.0,0.00022465,2]
[359255929,1745871382697,-400.0,0.00022465,2]
[359255930,1745871382725,-400.0,0.00022465,2]
[359255931,1745871382756,-400.0,0.00022465,2]
[359255932,1745871382785,-400.0,0.00022465,2]
[359255933,1745871382814,-400.0,0.00022465,2]
[359255934,1745871382842,-1397.25,0.00022465,2]
[359255935,1745871382871,-400.0,0.00022465,2]
[359255936,1745871382898,-400.0,0.00022465,2]
[359255937,1745871382925,-400.0,0.00022465,2]
[359255938,1745871382954,-400.0,0.00022465,2]
[359255939,1745871382982,-201.19339595,0.00022465,2]
[359255940,1745871383012,-2625.92,0.00022465,2]
[359255941,1745871383038,-400.0,0.00022465,2]
[359255942,1745871383066,-400.0,0.00022465,2]
[359255943,1745871383095,-400.0,0.00022465,2]
[359255944,1745871383124,-400.0,0.00022465,2]
[359255945,1745871383152,-400.0,0.00022465,2]
[359255946,1745871383181,-400.0,0.00022465,2]
[359255947,1745871383210,-400.0,0.00022465,2]
[359255948,1745871383238,-400.0,0.00022465,2]
[359255949,1745871383267,-400.0,0.00022465,2]
[359255950,1745871383294,-400.0,0.00022465,2]
[359255951,1745871383322,-460.31,0.00022465,2]
[359255952,1745871383350,-400.0,0.00022465,2]
[359255953,1745871383378,-400.0,0.00022465,2]
[359255954,1745871383405,-400.0,0.00022465,2]
[359255955,1745871383432,-400.0,0.00022465,2]
[359255956,1745871383462,-400.0,0.00022465,2]
[359255957,1745871383490,-400.0,0.00022465,2]
[359255958,1745871383519,-400.0,0.00022465,2]
[359255959,1745871383549,-400.0,0.00022465,2]
[359255960,1745871383576,-400.0,0.00022465,2]
[359255961,1745871383605,-2428.2,0.00022465,2]
[359255962,1745871383634,-2641.59,0.00022465,2]
[359255963,1745871383662,-400.0,0.00022465,2]
[359255964,1745871383694,-400.0,0.00022465,2]
[359255965,1745871383724,-400.0,0.00022465,2]
[359255966,1745871383759,-593.38,0.00022465,2]
[359255967,1745871383791,-400.0,0.00022465,2]
[359255968,1745871383819,-2229.32,0.00022465,2]
[359255969,1745871383849,-577.69,0.00022465,2]
[359255970,1745871383877,-400.0,0.00022465,2]
[359255971,1745871383908,-2569.81,0.00022465,2]
[359255972,1745871383938,-6976.06,0.00022465,2]
[359255973,1745871383967,-637.83,0.00022465,2]
[359255974,1745871383995,-400.0,0.00022465,2]
[359255975,1745871384022,-400.0,0.00022465,2]
[359255976,1745871384050,-466.96735348,0.00022465,2]
[359255977,1745871384078,-400.0,0.00022465,2]
[359255978,1745871384106,-400.0,0.00022465,2]
[359255979,1745871384135,-429.74,0.00022465,2]
[359255980,1745871384164,-400.0,0.00022465,2]
[359255981,1745871384194,-2053.12,0.00022465,2]
[359255982,1745871384225,-400.0,0.00022465,2]
[359255983,1745871384257,-400.0,0.00022465,2]
[359255984,1745871384286,-400.0,0.00022465,2]
[359255985,1745871384315,-400.0,0.00022465,2]
[359255986,1745871384343,-2461.64,0.00022465,2]
[359255987,1745871384370,-448.82308414,0.00022465,2]
[359255988,1745871384399,-400.0,0.00022465,2]
[359255989,1745871384426,-400.0,0.00022465,2]
[359255990,1745871384454,-400.0,0.00022465,2]
[359255991,1745871384483,-400.0,0.00022465,2]
[359255992,1745871384513,-2462.47,0.00022465,2]
[359255993,1745871384542,-390.16875653,0.00022465,2]
[359255994,1745871384570,-400.0,0.00022465,2]
[359255995,1745871384601,-2397.62,0.00022465,2]
[359255996,1745871384628,-400.0,0.00022465,2]
[359255997,1745871384656,-400.0,0.00022465,2]
[359255998,1745871384687,-221.3031868,0.00022465,2]
[359255999,1745871384829,-768.19,0.00022465,2]
[359256000,1745871384862,-400.0,0.00022465,2]
[359256001,1745871384891,-400.0,0.00022465,2]
[359256002,1745871384919,-400.0,0.00022465,2]
[359256003,1745871384948,-400.0,0.00022465,2]
[359256004,1745871384976,-400.0,0.00022465,2]
[359256005,1745871385005,-796.97,0.00022465,2]
[359256006,1745871385033,-400.0,0.00022465,2]
[359256007,1745871385062,-400.0,0.00022465,2]
[359256008,1745871385090,-400.0,0.00022465,2]
[359256009,1745871385118,-400.0,0.00022465,2]
[359256010,1745871385147,-2665.23,0.00022465,2]
[359256011,1745871385177,-400.0,0.00022465,2]
[359256012,1745871385205,-400.0,0.00022465,2]
[359256013,1745871385233,-400.0,0.00022465,2]
[359256014,1745871385261,-400.0,0.00022465,2]
[359256015,1745871385290,-3164.55,0.00022465,2]
[359256016,1745871385317,-400.0,0.00022465,2]
[359256017,1745871385347,-400.0,0.00022465,2]
[359256018,1745871385376,-400.0,0.00022465,2]
[359256019,1745871385404,-203.08492011,0.00022465,2]
[359256020,1745871385432,-400.0,0.00022465,2]
[359256021,1745871385462,-400.0,0.00022465,2]
[359256022,1745871385490,-400.0,0.00022465,2]
[359256023,1745871385520,-400.0,0.00022465,2]
[359256024,1745871385549,-400.0,0.00022465,2]
[359256025,1745871385579,-400.0,0.00022465,2]
[359256026,1745871385608,-400.0,0.00022465,2]
[359256027,1745871385635,-400.0,0.00022465,2]
[359256028,1745871385663,-400.0,0.00022465,2]
[359256029,1745871385693,-338.98480853,0.00022465,2]
[359256030,1745871385725,-400.0,0.00022465,2]
[359256031,1745871385756,-400.0,0.00022465,2]
[359256032,1745871385788,-717.73,0.00022465,2]
[359256033,1745871385815,-400.0,0.00022465,2]
[359256034,1745871385843,-400.0,0.00022465,2]
[359256035,1745871385871,-400.0,0.00022465,2]
[359256036,1745871385901,-400.0,0.00022465,2]
[359256037,1745871385929,-400.0,0.00022465,2]
[359256038,1745871385955,-400.0,0.00022465,2]
[359256039,1745871385988,-400.0,0.00022465,2]
[359256040,1745871386017,-200.0,0.00022465,2]
[359256041,1745871386045,-400.0,0.00022465,2]
[359256042,1745871386075,-400.0,0.00022465,2]
[359256043,1745871386103,-3061.25,0.00022465,2]
[359256044,1745871386132,-403.64,0.00022465,2]
[359256045,1745871386162,-406.55474081,0.00022465,2]
[359256046,1745871386191,-400.0,0.00022465,2]
[359256047,1745871386221,-208.15267079,0.00022465,2]
[359256048,1745871386251,-400.0,0.00022465,2]
[359256049,1745871386281,-2064.35,0.00022465,2]
[359256050,1745871386310,-517.76,0.00022465,2]
[359256051,1745871386339,-400.0,0.00022465,2]
[359256052,1745871386368,-400.0,0.00022465,2]
[359256053,1745871386398,-2094.54,0.00022465,2]
[359256054,1745871386426,-1203.96,0.00022465,2]
[359256055,1745871386455,-434.01,0.00022465,2]
[359256056,1745871386483,-400.0,0.00022465,2]
[359256057,1745871386513,-400.0,0.00022465,2]
[359256058,1745871386541,-400.0,0.00022465,2]
[359256059,1745871386568,-400.0,0.00022465,2]
[359256060,1745871386595,-400.0,0.00022465,2]
[359256061,1745871386624,-1598.61,0.00022465,2]
[359256062,1745871386652,-301.02711361,0.00022465,2]
[359256063,1745871386680,-400.0,0.00022465,2]
[359256064,1745871386711,-400.0,0.00022465,2]
[359256065,1745871386737,-400.0,0.00022465,2]
[359256066,1745871386767,-400.0,0.00022465,2]
[359256067,1745871386793,-400.0,0.00022465,2]
[359256068,1745871386820,-488.85864937,0.00022465,2]
[359256069,1745871386846,-435.28,0.00022465,2]
[359256070,1745871386873,-400.0,0.00022465,2]
[359256071,1745871386899,-388.0538308,0.00022465,2]
[359256072,1745871386926,-400.0,0.00022465,2]
[359256073,1745871386952,-428.7,0.00022465,2]
[359256074,1745871386975,-232.88738717,0.00022465,2]
[359256075,1745871387003,-400.0,0.00022465,2]
[359256076,1745871387031,-508.35,0.00022465,2]
[359256077,1745871387060,-400.0,0.00022465,2]
[359256078,1745871387089,-400.0,0.00022465,2]
[359256079,1745871387227,-400.0,0.00022465,2]
[359256080,1745871387264,-1204.52,0.00022465,2]
[359256081,1745871387296,-619.33,0.00022465,2]
[359256082,1745871387324,-400.0,0.00022465,2]
[359256083,1745871387352,-400.0,0.00022465,2]
[359256084,1745871387380,-400.0,0.00022465,2]
[359256085,1745871387409,-400.0,0.00022465,2]
[359256086,1745871387438,-400.0,0.00022465,2]
[359256087,1745871387465,-400.0,0.00022465,2]
[359256088,1745871387492,-213.35979622,0.00022465,2]
[359256089,1745871387520,-400.0,0.00022465,2]
[359256090,1745871387543,-588.7,0.00022465,2]
[359256091,1745871387565,-633.46,0.00022465,2]
[359256092,1745871387588,-3332.77,0.00022465,2]
[359256093,1745871387611,-2519.41,0.00022465,2]
[359256094,1745871387637,-305.61679366,0.00022465,2]
[359256095,1745871387665,-400.0,0.00022465,2]
[359256096,1745871387694,-400.0,0.00022465,2]
[359256097,1745871387720,-400.0,0.00022465,2]
[359256098,1745871387749,-400.0,0.00022465,2]
[359256099,1745871387776,-400.0,0.00022465,2]
[359256100,1745871387805,-202.49020601,0.00022465,2]
[359256101,1745871387837,-2048.65,0.00022465,2]
[359256102,1745871387867,-400.0,0.00022465,2]
[359256103,1745871387895,-2696.63,0.00022465,2]
[359256104,1745871387921,-400.0,0.00022465,2]
[359256105,1745871387948,-522.16,0.00022465,2]
[359256106,1745871387974,-400.0,0.00022465,2]
[359256107,1745871388002,-853.62,0.00022465,2]
[359256108,1745871388030,-400.0,0.00022465,2]
[359256109,1745871388057,-203.46995054,0.00022465,2]
[359256110,1745871388085,-509.02,0.00022465,2]
[359256111,1745871388113,-2533.05,0.00022465,2]
[359256112,1745871388140,-514.93,0.00022465,2]
[359256113,1745871388167,-432.78,0.00022465,2]
[359256114,1745871388197,-400.0,0.00022465,2]
[359256115,1745871388224,-400.0,0.00022465,2]
[359256116,1745871388257,-400.0,0.00022465,2]
[359256117,1745871388285,-400.0,0.00022465,2]
[359256118,1745871388313,-400.0,0.00022465,2]
[359256119,1745871388341,-400.0,0.00022465,2]
[359256120,1745871388369,-400.0,0.00022465,2]
[359256121,1745871388396,-400.0,0.00022465,2]
[359256122,1745871388425,-400.0,0.00022465,2]
[359256123,1745871388454,-901.06,0.00022465,2]
[359256124,1745871388482,-400.0,0.00022465,2]
[359256125,1745871388511,-1134.83,0.00022465,2]
[359256126,1745871388538,-400.0,0.00022465,2]
[359256127,1745871388565,-401.74891531,0.00022465,2]
[359256128,1745871388592,-400.0,0.00022465,2]
[359256129,1745871388629,-400.0,0.00022465,2]
[359256130,1745871388661,-217.13441961,0.00022465,2]
[359256131,1745871388690,-807.19,0.00022465,2]
[359256132,1745871388720,-400.0,0.00022465,2]
[359256133,1745871388748,-400.0,0.00022465,2]
[359256134,1745871388776,-400.0,0.00022465,2]
[359256135,1745871388804,-412.13878158,0.00022465,2]
[359256136,1745871388830,-204.24399687,0.00022465,2]
[359256137,1745871388857,-400.0,0.00022465,2]
[359256138,1745871388887,-4092.61,0.00022465,2]
[359256139,1745871388915,-2772.25,0.00022465,2]
[359256140,1745871388942,-400.0,0.00022465,2]
[359256141,1745871388968,-400.0,0.00022465,2]
[359256142,1745871388996,-579.82,0.00022465,2]
[359256143,1745871389024,-400.0,0.00022465,2]
[359256144,1745871389050,-400.0,0.00022465,2]
[359256145,1745871389078,-456.33,0.00022465,2]
[359256146,1745871389106,-400.0,0.00022465,2]
[359256147,1745871389136,-202.26393237,0.00022465,2]
[359256148,1745871389164,-400.0,0.00022465,2]
[359256149,1745871389194,-400.0,0.00022465,2]
[359256150,1745871389221,-400.0,0.00022465,2]
[359256151,1745871389249,-400.0,0.00022465,2]
[359256152,1745871389275,-400.0,0.00022465,2]
[359256153,1745871389299,-530.13407017,0.00022465,2]
[359256154,1745871389326,-400.0,0.00022465,2]
[359256155,1745871389352,-400.0,0.00022465,2]
[359256156,1745871389378,-664.88,0.00022465,2]
[359256157,1745871389551,-400.0,0.00022465,2]
[359256158,1745871389578,-418.77,0.00022465,2]
[359256159,1745871389605,-400.0,0.00022465,2]
[359256160,1745871389632,-400.0,0.00022465,2]
[359256161,1745871389657,-400.0,0.00022465,2]
[359256162,1745871389682,-400.0,0.00022465,2]
[359256163,1745871389713,-2662.05,0.00022465,2]
[359256164,1745871389739,-400.0,0.00022465,2]
[359256165,1745871389766,-400.0,0.00022465,2]
[359256166,1745871389791,-564.18,0.00022465,2]
[359256167,1745871389818,-562.61,0.00022465,2]
[359256168,1745871389845,-400.0,0.00022465,2]
[359256169,1745871389870,-400.0,0.00022465,2]
[359256170,1745871389895,-400.0,0.00022465,2]
[359256171,1745871389921,-219.33004801,0.00022465,2]
[359256172,1745871389947,-400.0,0.00022465,2]
[359256173,1745871389975,-518.4,0.00022465,2]
[359256174,1745871390001,-878.59,0.00022465,2]
[359256175,1745871390027,-729.83,0.00022465,2]
[359256176,1745871390052,-3999.92,0.00022465,2]
[359256177,1745871390077,-219.3986597,0.00022465,2]
[359256178,1745871390101,-400.0,0.00022465,2]
[359256179,1745871390125,-217.45713039,0.00022465,2]
[359256180,1745871390151,-2861.97,0.00022465,2]
[359256181,1745871390177,-400.0,0.00022465,2]
[359256182,1745871390202,-400.0,0.00022465,2]
[359256183,1745871390227,-400.0,0.00022465,2]
[359256184,1745871390252,-400.0,0.00022465,2]
[359256185,1745871390277,-400.0,0.00022465,2]
[359256186,1745871390303,-400.0,0.00022465,2]
[359256187,1745871390328,-400.0,0.00022465,2]
[359256188,1745871390353,-428.97,0.00022465,2]
[359256189,1745871390381,-5073.15,0.00022465,2]
[359256190,1745871390407,-202.78021729,0.00022465,2]
[359256191,1745871390433,-400.0,0.00022465,2]
[359256192,1745871390459,-1917.87,0.00022465,2]
[359256193,1745871390484,-201.81419777,0.00022465,2]
[359256194,1745871390509,-500.0,0.00022473,2]
[359256195,1745871390535,-500.0,0.00022473,2]
[359256196,1745871390560,-500.0,0.00022473,2]
[359256197,1745871390586,-3000.0,0.000227,2]
[359256198,1745871390611,-3000.0,0.0002271,2]
[359256199,1745871390636,-3000.0,0.0002272,2]
[359256200,1745871390661,-3000.0,0.0002273,2]
[359256201,1745871390686,-157.45,0.00022739,2]
[359256202,1745871390713,-400.0,0.00022739,2]
[359256203,1745871390740,-400.0,0.00022739,2]
[359256204,1745871390767,-400.0,0.00022739,2]
[359256205,1745871390794,-315.58592454,0.00022739,2]
[359256206,1745871390820,-307.34221166,0.00022739,2]
[359256207,1745871390844,-400.0,0.00022739,2]
[359256208,1745871390870,-512.56103243,0.00022739,2]
[359256209,1745871390896,-400.0,0.00022739,2]
[359256210,1745871390922,-400.0,0.00022739,2]
[359256211,1745871390947,-433.09227156,0.00022739,2]
[359256212,1745871390972,-400.0,0.00022739,2]
[359256213,1745871391000,-400.0,0.00022739,2]
[359256214,1745871391025,-400.0,0.00022739,2]
[359256215,1745871391050,-400.0,0.00022739,2]
[359256216,1745871391075,-400.0,0.00022739,2]
[359256217,1745871391099,-400.0,0.00022739,2]
[359256218,1745871391125,-400.0,0.00022739,2]
[359256219,1745871391150,-400.0,0.00022739,2]
[359256220,1745871391177,-400.0,0.00022739,2]
[359256221,1745871391202,-400.0,0.00022739,2]
[359256222,1745871391227,-400.0,0.00022739,2]
[359256223,1745871391253,-400.0,0.00022739,2]
[359256224,1745871391277,-400.0,0.00022739,2]
[359256225,1745871391301,-400.0,0.00022739,2]
[359256226,1745871391326,-400.0,0.00022739,2]
[359256227,1745871391349,-400.0,0.00022739,2]
[359256228,1745871391374,-640.31,0.00022739,2]
[359256229,1745871391398,-400.0,0.00022739,2]
[359256230,1745871391423,-400.0,0.00022739,2]
[359256231,1745871391544,-880.33,0.00022739,2]
[359256232,1745871391569,-400.0,0.00022739,2]
[359256233,1745871391594,-400.0,0.00022739,2]
[359256234,1745871391619,-400.0,0.00022739,2]
[359256235,1745871391645,-415.47055427,0.00022739,2]
[359256236,1745871391670,-400.0,0.00022739,2]
[359256237,1745871391697,-454.33,0.00022739,2]
[359256238,1745871391722,-400.0,0.00022739,2]
[359256239,1745871391748,-400.0,0.00022739,2]
[359256240,1745871391772,-1000.0,0.00022739,2]
[359256241,1745871391797,-503.9962341,0.00022739,2]
[359256242,1745871391821,-400.0,0.00022739,2]
[359256243,1745871391846,-400.0,0.00022739,2]
[359256244,1745871391870,-902.41595332,0.00022739,2]
[359256245,1745871391895,-400.0,0.00022739,2]
[359256246,1745871391919,-392.01499539,0.00022739,2]
[359256247,1745871391943,-400.0,0.00022739,2]
[359256248,1745871391968,-400.0,0.00022739,2]
[359256249,1745871391994,-400.0,0.00022739,2]
[359256250,1745871392020,-400.0,0.00022739,2]
[359256251,1745871392046,-400.0,0.00022739,2]
[359256252,1745871392070,-523.58618408,0.00022739,2]
[359256253,1745871392097,-400.0,0.00022739,2]
[359256254,1745871392123,-400.0,0.00022739,2]
[359256255,1745871392148,-400.0,0.00022739,2]
[359256256,1745871392173,-400.0,0.00022739,2]
[359256257,1745871392197,-400.0,0.00022739,2]
[359256258,1745871392222,-400.0,0.00022739,2]
[359256259,1745871392246,-400.0,0.00022739,2]
[359256260,1745871392270,-500.0,0.00022739,2]
[359256261,1745871392294,-400.0,0.00022739,2]